Cogmind - Beta 15 @@@ ROGUE MODE // 2025.05.20 @ 02:26:17 Player: Player Result: Destroyed by P-80 Master with Gamma Rifle Performance ------------- Evolutions (7) 3500 Regions Visited (13) 2600 Robots Destroyed (243) 1215 Value Destroyed (9699) 9699 Prototype IDs (10) 200 Alien Tech Used (0) 0 Bonus (1203) 1203 TOTAL SCORE: 18417 Bonus ------- High Alert Combat Kills 183 Follower Combat Kills 1020 Cogmind --------- Core Integrity 0/1300 Matter 24/300 Energy 100/100 System Corruption 48% Temperature Cool (0) Movement Core (50) Location -3/Research Parts ------- > --- POWER (1) -------- (None) > --- PROPULSION (6) --- (None) > --- UTILITY (12) ----- Enhanced Optical Array Advanced Signal Interpreter Advanced Targeting Computer Experimental Targeting Computer Core Analyzer Armor Integrity Analyzer Graphene Brace Advanced Hacking Suite > --- WEAPON (2) ------- (None) > --- INVENTORY (5) ---- Matter Compressor (6) Improved Particle Charger Quantum Capacitor Layered Medium Armor Plating Peak State ------------ > --- POWER ------------ Cooled Fission Core > --- PROPULSION ------- Improved Medium Treads Improved Medium Treads Improved Medium Treads Improved Medium Treads Armored Medium Treads Enhanced Armored Medium Treads > --- UTILITY ---------- Huge Storage Unit Enhanced Optical Array Advanced Sensor Array Advanced Signal Interpreter Advanced Targeting Computer Experimental Targeting Computer Advanced Target Analyzer Core Analyzer Armor Integrity Analyzer Improved Kinecellerator Improved Kinecellerator Advanced Thermal Shield > --- WEAPON ----------- Antimatter Cannon Hypervelocity Gauss Cannon > --- INVENTORY -------- Light Antimatter Reactor Improved Medium Treads Compact Wheel Matter Compressor Advanced Terrain Scan Processor Improved Particle Charger Quantum Capacitor Insulated Plating Focal Shield Advanced Thermal Shield Advanced Component Analysis Suite Hypervelocity Gauss Rifle KE Penetrator Improved KE Penetrator Railgun Magnetic Acceleration Cannon Bore Cannon Mass Driver Mass Driver Mass Driver Hypervelocity Gauss Cannon Hypervelocity Gauss Cannon Heavy Rocket Launcher Great Maul [Rating: 125] Favorites ----------- Power Cooled Fission Core Engine Ion Engine Power Core Cooled Fission Core Reactor Quantum Reactor Propulsion Light Treads Treads Light Treads Leg Flexi-carbon Leg Wheel Wheel Hover Unit Improved Antigrav System Utility Experimental Targeting Computer Device Advanced Sensor Array Storage Huge Storage Unit Processor Experimental Targeting Computer Hackware System Shield Protection Light Armor Plating Weapon Magnetic Acceleration Cannon Energy Gun EM Pulse Gun Energy Cannon Particle Cannon Ballistic Gun Improved Assault Rifle Ballistic Cannon Magnetic Acceleration Cannon Launcher Heavy Rocket Launcher Special Weapon Mining Laser Impact Weapon Great Maul Build | -11 -10 -9 -9 -8 -7 -6 -6 -6 -6 -6 -5 -4 -3 ------- Run | Yrd Mat Mat Sto Mat Fac Fac Ext Cet Arc Hub Fac Fac Res Slots Evolved 14 | . . 2 . 2 2 2 . . . . 2 2 2 Power . | . . . . . . . . . . . . . . Propulsion 4 | . . 1 . 1 1 1 . . . . . . . Utility 10 | . . 1 . 1 1 1 . . . . 2 2 2 Weapon . | . . . . . . . . . . . . . . Parts Attached 212 | 8 8 2 37 11 20 6 22 7 . 16 22 11 42 Power 26 | 1 3 . 3 2 3 1 3 1 . 2 1 . 6 Engine 15 | 1 3 . 3 . 3 . 2 . . 2 . . 1 Core 4 | . . . . 2 . . 1 . . . 1 . . Reactor 7 | . . . . . . 1 . 1 . . . . 5 Propulsion 65 | 2 . . 8 6 6 2 11 2 . 3 10 3 12 Treads 44 | 2 . . 5 4 5 2 10 2 . 3 6 3 2 Leg 6 | . . . 3 . . . . . . . . . 3 Wheel 12 | . . . . 2 1 . 1 . . . 3 . 5 Hover 3 | . . . . . . . . . . . 1 . 2 Flight . | . . . . . . . . . . . . . . Utility 74 | 3 2 1 13 2 5 1 5 2 . 6 9 8 17 Device 27 | 2 . . 2 . 2 . . . . 3 5 2 11 Storage 7 | 1 2 . 2 . . . 1 . . . . 1 . Processor 13 | . . . 2 . 2 . . . . . 2 3 4 Hackware 3 | . . . . . . . . 2 . . . . 1 Protection 24 | . . 1 7 2 1 1 4 . . 3 2 2 1 Artifact . | . . . . . . . . . . . . . . Weapon 47 | 2 3 1 13 1 6 2 3 2 . 5 2 . 7 Energy Gun 11 | 1 3 . 6 . . . . 1 . . . . . Energy Cannon 2 | . . . 2 . . . . . . . . . . Ballistic Gun 15 | 1 . . 4 1 5 . 1 . . 2 . . 1 Ballistic Cannon 13 | . . . . . . 2 . 1 . 2 2 . 6 Launcher 4 | . . . 1 . 1 . 1 . . 1 . . . Special Weapon 1 | . . 1 . . . . . . . . . . . Impact Weapon 1 | . . . . . . . 1 . . . . . . Slashing Weapon . | . . . . . . . . . . . . . . Piercing Weapon . | . . . . . . . . . . . . . . Special Melee Weapon . | . . . . . . . . . . . . . . Unidentified Prototypes 9 | . . . 2 . . 1 . 2 . 1 2 1 . Corrupted Parts 2 | . . . 2 . . . . . . . . . . System Corruption 12 | . . . 12 . . . . . . . . . . Parts Lost 85 | . . . 17 2 6 . 4 . . 11 2 2 41 Power 9 | . . . 2 . . . . . . 1 . . 6 Propulsion 29 | . . . 4 . 3 . 4 . . . 1 . 17 Utility 27 | . . . 6 2 2 . . . . 6 1 2 8 Weapon 20 | . . . 5 . 1 . . . . 4 . . 10 Highest Loss Streak 13 | . . . 9 1 3 . 2 . . 5 2 1 13 To Critical Strikes . | . . . . . . . . . . . . . . Average Backups 21 | 2 8 10 17 24 24 21 23 24 24 23 19 21 22 Power . | 1 . . . . . . . . . . . . . Propulsion 3 | . . . 1 4 6 3 3 5 6 7 5 4 1 Utility 10 | . 5 6 11 10 12 13 14 12 11 8 7 8 9 Weapon 6 | . 1 3 3 8 4 4 6 6 7 7 6 7 11 Tool/Special . | . . . . . . . . . . . . . . Unused Backups 65 | . 4 . 4 6 7 2 6 3 1 2 7 2 21 Power 8 | . 2 . . 2 1 . . . . 1 2 . . Propulsion 6 | . . . 2 . 2 . . 1 1 . . . . Utility 32 | . 1 . 2 1 3 . 5 2 . 1 2 2 13 Weapon 18 | . 1 . . 3 . 2 1 . . . 3 . 8 Tool/Special 1 | . . . . . 1 . . . . . . . . Average Slot Usage (%) 90 | . 99 86 89 99 98 99 93 78 73 74 94 91 87 Engine 3 | . 14 11 10 2 5 3 2 . . 1 . . . Core 1 | . . . . 6 1 . 2 . . . 3 5 1 Reactor 1 | . . . . . . 2 . 5 6 4 1 . 1 Treads 23 | . 28 22 18 34 21 19 28 21 20 17 25 31 17 Leg 1 | . . . 6 . . . . . . . . . 1 Wheel 4 | . . . . 1 16 20 4 . . . 7 . 2 Device 6 | . 14 11 8 . 1 12 1 . . 6 13 11 9 Storage 6 | . 14 11 11 9 7 6 6 6 6 6 5 5 3 Processor 17 | . . . 2 18 16 20 20 20 20 13 16 20 30 Protection 6 | . . 9 9 8 11 . 11 2 6 9 3 5 3 Energy Gun 2 | . 20 12 7 . . . . . . . . . . Ballistic Gun 4 | . 7 . 9 17 12 6 . . . 1 4 . . Ballistic Cannon 5 | . . . . . . 6 11 7 12 9 2 7 8 Peak Build Rating 125 | 8 9 9 22 26 37 49 72 102 102 104 95 110 125 Average Rating 61 | 6 8 8 14 24 31 44 61 94 101 95 74 101 106 On Entrance 49 | . 8 8 9 22 24 36 49 71 100 102 59 92 110 Naked Turns . | . . . . . . . . . . . . . . Heaviest Build 153 | 14 30 30 95 96 107 112 120 131 131 137 137 153 141 Greatest Support 235 | 40 40 40 60 80 36 36 171 235 235 235 180 185 182 Greatest Overweight (x) 26 | . . . 3 4 5 3 4 . . . 6 . 26 Average Overweight (x) 1 | . . . . 1 4 2 . . . . 1 . 1 Largest Inventory Capacity 25 | 8 15 15 25 25 25 25 25 25 25 25 25 25 25 Average Capacity 22 | 7 8 15 18 25 25 25 25 25 25 25 25 25 24 Most Carried 25 | 6 11 11 25 25 25 25 25 25 25 25 25 25 25 Average Carried 22 | 2 8 10 17 24 24 23 24 24 24 24 23 24 23 Final Capacity 25 | 8 15 15 25 25 25 25 25 25 25 25 25 25 5 Final Carried 25 | 6 11 11 25 25 25 25 25 25 25 21 25 25 5 Class Distribution -------------------- 55% | Scavenger-Mutant 21% | Mutant 9% | Skirmisher 4% | Commander-Mutant 4% | Scavenger-Skirmisher Dominant Class ---------------- Mutant | -10/Materials Mutant | -9/Materials Scavenger-Mutant | -9/Storage Scavenger-Mutant | -8/Materials Scavenger-Mutant | -7/Factory Scavenger-Skirmisher | -6/Factory Scavenger-Mutant | -6/Extension Scavenger-Mutant | -6/Cetus Scavenger-Mutant | -6/Archives Scavenger-Mutant | -6/Hub_04(d) Mutant | -5/Factory Mutant | -4/Factory Skirmisher | -3/Research Resources | -11 -10 -9 -9 -8 -7 -6 -6 -6 -6 -6 -5 -4 -3 ----------- Run | Yrd Mat Mat Sto Mat Fac Fac Ext Cet Arc Hub Fac Fac Res Matter Collected 8915 | 291 208 20 671 412 708 149 1443 196 116 1113 549 977 2062 Remotely . | . . . . . . . . . . . . . . Salvage Created 8736 | 179 606 96 1071 686 841 34 675 . 110 1333 499 912 1694 Parts 453 | 16 37 6 69 46 49 1 33 . . 57 28 34 77 Haulers Intercepted 3 | . 1 . 1 . . . 1 . . . . . . Recyclers Shooed 11 | 1 1 . 2 . 3 . . . . 1 . 1 2 Parts Field Recycled . | . . . . . . . . . . . . . . Retrieved Matter . | . . . . . . . . . . . . . . Parts Self-Destructed . | . . . . . . . . . . . . . . Prevented . | . . . . . . . . . . . . . . Kills | -11 -10 -9 -9 -8 -7 -6 -6 -6 -6 -6 -5 -4 -3 ------- Run | Yrd Mat Mat Sto Mat Fac Fac Ext Cet Arc Hub Fac Fac Res Combat Hostiles Destroyed 170 | . 10 1 22 10 12 1 21 1 2 33 7 17 33 Melee 2 | . . . . . . . . . . . 2 . . Guns 42 | . 10 1 13 7 7 . . . . 1 1 . 2 Cannons 87 | . . . 1 . . 1 12 1 2 27 4 13 26 AOE 38 | . . . 7 3 5 . 9 . . 5 . 4 5 Classes Destroyed 17 | 2 4 2 1 1 3 . 2 . . 1 . . 1 Worker 16 | . . . . 4 1 . 1 . . 2 2 1 5 Builder 11 | . 2 . 2 1 . . 1 . . 2 . . 3 Tunneler 8 | 5 . . . . 1 . . . . . 1 1 . Hauler 3 | . 1 . 1 . . . 1 . . . . . . Recycler 14 | 1 . . 3 1 3 . . . . 2 1 1 2 Mechanic 3 | . . 1 . . 1 . 1 . . . . . . Operator 2 | . . . . . . . 2 . . . . . . Watcher 14 | . 3 . 1 2 1 . 2 . . . 1 1 3 Swarmer 33 | . . . 7 . . . 11 . . 5 . 5 5 Grunt 63 | . 10 . 4 6 5 . 4 . . 14 2 7 11 Brawler 1 | . . . . . 1 . . . . . . . . Duelist 1 | . . . . . . . . . . . . . 1 Sentry 34 | . . 1 11 4 1 1 5 . 2 6 . 1 2 Specialist 6 | . . . . . 4 . . . . 2 . . . Hunter 7 | . . . . . . . 1 . . 3 1 2 . Programmer 22 | . . . . . 1 . . . . 1 4 2 14 Heavy 2 | . . . . . . . . . . 2 . . . Cetus Guard 1 | . . . . . . . . 1 . . . . . Thug 1 | . . . . . . . 1 . . . . . . Savage 1 | . . . . . . . 1 . . . . . . Best Kill Streak 9 | 5 3 2 5 4 8 1 7 1 1 9 3 5 7 Combat Bots Only 8 | . 3 1 4 3 5 1 5 1 1 8 2 5 6 Max Kills in Single Turn 5 | 2 1 1 2 3 2 1 4 1 1 2 1 5 5 Gunslinging . | . . . . . . . . . . . . . . Exploded 5 | . . . 2 3 2 . 4 . . 2 . 4 5 Melee 1 | . . . . . . . . . . . 1 . . Uniques/NPCs Destroyed . | . . . . . . . . . . . . . . Combat | -11 -10 -9 -9 -8 -7 -6 -6 -6 -6 -6 -5 -4 -3 -------- Run | Yrd Mat Mat Sto Mat Fac Fac Ext Cet Arc Hub Fac Fac Res Hostile Shots Fired 1814 | . 37 9 199 68 157 18 207 2 9 393 69 156 490 Missed 512 | . 8 4 60 23 51 7 63 1 3 98 19 47 128 Hits 1302 | . 29 5 139 45 106 11 144 1 6 295 50 109 362 Projectile 1302 | . 29 5 139 45 106 11 144 1 6 295 50 109 362 AOE 4 | . . . . . . . . . . . 2 2 . Critical Strikes 57 | . . . 5 1 2 . 1 . 1 12 1 9 25 Actively Blocked 10 | . . . . . . . . . . . . . 10 Part Disruptions 8 | . . . . . . . . . . . 1 . 7 Damage Taken 21787 | 8 377 67 1905 847 1735 82 1628 83 173 4541 1130 1901 7310 Core 2508 | . 32 40 286 87 262 . 120 56 . 253 12 59 1301 Absorbed by Shields . | . . . . . . . . . . . . . . Reduced by Siege Mode 357 | . . . . . . . 19 . 13 325 . . . Redirected to Shielding 1 | . . . . . 1 . . . . . . . . Ignored by Resistances 1043 | . . . . . . . . . . 128 10 250 655 Regen/Repaired (Parts) 28 | . . . 28 . . . . . . . . . . Core Remaining (%) 74 | 100 87 . 18 84 62 . . . . 49 98 94 . Volleys Fired 672 | 11 48 11 90 49 53 19 63 8 8 90 25 42 155 Largest 2 | 2 2 2 2 2 2 2 2 2 2 2 2 2 2 Hottest 140 | 60 105 140 124 100 100 88 88 88 88 88 84 84 98 Shots Fired 1183 | 22 95 12 153 96 102 22 118 16 16 170 40 68 253 Gun 489 | 22 95 11 136 94 93 . 4 . . 4 14 . 16 Cannon 652 | . . . 3 . . 21 109 16 16 159 26 67 235 Launcher 24 | . . . 2 . 6 1 5 . . 7 . 1 2 Special 18 | . . 1 12 2 3 . . . . . . . . Kinetic 962 | 11 28 . 49 94 93 21 113 16 16 163 40 67 251 Thermal 61 | . 11 1 44 2 3 . . . . . . . . Explosive 24 | . . . 2 . 6 1 5 . . 7 . 1 2 Electromagnetic 136 | 11 56 11 58 . . . . . . . . . . Robot Hit Streak 39 | 5 9 3 16 27 39 8 15 16 8 29 28 11 23 Robot Miss Streak 6 | 3 2 1 4 2 1 . 3 1 1 6 2 3 2 Penetration Max 1 | . . . . . . . . . . . . 1 1 Secondary Targets 6 | . 1 . 2 . 3 . . . . . . . . Max Gunslinging Chain 1 | . 1 . 1 . 1 . . . . . . . . Shots Hit Robots 828 | 12 56 7 101 75 82 5 83 14 12 123 37 49 172 Core Hits 404 | 9 28 4 42 33 42 2 53 3 5 76 13 24 70 Critical Kills 29 | . . . . . . . . . . . 6 9 14 Critical Parts Destroyed 39 | . . . . . . . . . . 1 6 14 18 Critical Strikes 109 | . 2 . 2 . . . 5 . 1 10 14 28 47 Burn 3 | . 1 . 2 . . . . . . . . . . Destroy 61 | . . . . . . . . . . 1 7 21 32 Blast 37 | . . . . . . . 5 . 1 9 2 5 15 Corrupt 1 | . 1 . . . . . . . . . . . . Smash 7 | . . . . . . . . . . . 5 2 . Melee Attacks 57 | . . . . . . . 2 . . 6 35 9 5 Impact 57 | . . . . . . . 2 . . 6 35 9 5 Slashing . | . . . . . . . . . . . . . . Piercing . | . . . . . . . . . . . . . . Sneak Attacks 9 | . . . . . . . 1 . . 1 5 2 . Combat Hostiles . | . . . . . . . . . . . . . . Follow-up Attacks . | . . . . . . . . . . . . . . Damage Inflicted 25281 | 193 752 79 2067 1496 1874 166 3778 423 393 4828 1369 1732 6131 Guns 5103 | 148 752 79 1315 1122 1248 . 76 . . 40 74 . 249 Cannons 14580 | . . . 71 . . 166 2628 423 393 3683 487 1264 5465 Explosions 4353 | 45 . . 657 374 626 . 998 . . 986 . 250 417 Melee 1221 | . . . . . . . 76 . . 119 808 218 . Ramming . | . . . . . . . . . . . . . . Kinetic 17958 | 44 111 . 485 1122 1248 166 2704 423 393 3723 561 1264 5714 Thermal 884 | 45 116 . 723 . . . . . . . . . . Explosive 3954 | . . . 303 374 626 . 998 . . 986 . 250 417 Electromagnetic 1264 | 104 525 79 556 . . . . . . . . . . Impact 1221 | . . . . . . . 76 . . 119 808 218 . Slashing . | . . . . . . . . . . . . . . Piercing . | . . . . . . . . . . . . . . Highest Corruption 48 | . . . 14 . . . . . . 1 4 2 48 Average Corruption 11 | . . . 11 . . . . . . 1 3 2 24 Corruption Purged 5 | . . . . . . . . . . . . . 5 Corruption Blocked . | . . . . . . . . . . . . . . Effects 146 | . . . 50 . . . . . . 10 12 4 70 Message Errors 27 | . . . 11 . . . . . . 1 . . 15 Matter Fused 39 | . . . 15 . . . . . . 3 4 1 16 Heat Flow Errors 14 | . . . 3 . . . . . . 2 1 2 6 Energy Discharges 14 | . . . 7 . . . . . . . 3 1 3 Parts Rejected 3 | . . . 1 . . . . . . . 1 . 1 Parts Fused 2 | . . . . . . . . . . . . . 2 Data Loss (minor) 15 | . . . 4 . . . . . . 1 2 . 8 Data Loss (major) 4 | . . . 2 . . . . . . . . . 2 Misfires 6 | . . . 2 . . . . . . 1 . . 3 Alerts 5 | . . . 2 . . . . . . . 1 . 2 Misdirections 2 | . . . . . . . . . . . . . 2 Weapon Failures 15 | . . . 3 . . . . . . 2 . . 10 Overload Shots . | . . . . . . . . . . . . . . Overflow Damage 1121 | . . . 29 39 . . 166 . . 154 159 267 307 Projectiles 448 | . . . . . . . 27 . . 47 38 29 307 Explosions 189 | . . . 29 39 . . 73 . . 28 . 20 . Melee 484 | . . . . . . . 66 . . 79 121 218 . Knockbacks 114 | . . . . . . . 10 . . 29 4 17 54 Impact 4 | . . . . . . . 1 . . . 1 2 . Kinetic 100 | . . . . . . . 9 . . 28 3 14 46 Secondary 10 | . . . . . . . . . . 1 . 1 8 Self-Inflicted Damage 484 | 8 27 . 110 114 36 . . . . 113 56 20 . Shots 14 | 1 1 . 4 2 1 . . . . 3 1 1 . Rammed 1 | . . . . . 1 . . . . . . . . Targets Rammed 1 | . . . . . 1 . . . . . . . . Kicked . | . . . . . . . . . . . . . . Crushed . | . . . . . . . . . . . . . . Highest Temperature 278 | 52 273 25 256 45 48 6 252 120 117 278 190 251 223 Average Temperature 56 | 23 60 13 46 16 12 6 53 62 46 87 39 68 37 Received Heat Transfer 4339 | . 192 24 606 369 429 24 381 . 45 942 153 315 859 Siege Activations 15 | . . . . . . . 5 1 3 6 . . . Total Turns 360 | . . . . . . . 67 21 62 210 . . . Longest Duration 97 | . . . . . . . 24 21 45 97 . . . Martial Activations . | . . . . . . . . . . . . . . Shielding Activations . | . . . . . . . . . . . . . . Robots Disrupted . | . . . . . . . . . . . . . . Combat Hostiles . | . . . . . . . . . . . . . . Robots Corrupted 6 | . . . 1 . . . 1 . . . 1 2 1 Combat Hostiles 1 | . . . 1 . . . . . . . . . . Parts Fried 14 | 1 1 1 2 . . . 1 . . 1 . 5 2 Impact Corruptions 20 | . . . . . . . 5 . . 3 4 7 1 Robots Melted . | . . . . . . . . . . . . . . Combat Hostiles . | . . . . . . . . . . . . . . Parts Melted 3 | . 2 . 1 . . . . . . . . . . Heat Transferred 1982 | . 333 . 1649 . . . . . . . . . . Parts Sabotaged . | . . . . . . . . . . . . . . Parts Stolen . | . . . . . . . . . . . . . . Parts Stripped . | . . . . . . . . . . . . . . Power Chain Reactions 7 | 1 1 . 5 . . . . . . . . . . Alert | -11 -10 -9 -9 -8 -7 -6 -6 -6 -6 -6 -5 -4 -3 ------- Run | Yrd Mat Mat Sto Mat Fac Fac Ext Cet Arc Hub Fac Fac Res Maximum Alert Level 2 | . . . 1 . 1 . 2 1 . 2 1 1 2 Low Security (%) 74 | 100 100 100 96 100 81 100 76 50 100 19 25 91 71 Level 1 23 | . . . 3 . 18 . 20 49 . 52 74 8 28 Level 2 2 | . . . . . . . 2 . . 27 . . . Level 3 . | . . . . . . . . . . . . . . Level 4 . | . . . . . . . . . . . . . . Level 5 . | . . . . . . . . . . . . . . High Security . | . . . . . . . . . . . . . . Max Security . | . . . . . . . . . . . . . . Peak Influence 679 | 10 91 50 212 193 249 99 459 348 23 679 363 223 408 Initial 311 | . . 33 5 86 54 99 . 255 16 . 311 91 93 Average 113 | 1 37 31 42 100 58 21 100 196 4 319 247 91 117 Influence Increases 6809 | 30 331 42 1013 396 480 44 1034 128 87 1189 421 518 1096 Destroy 0b10 Robot/C 3860 | . 200 20 560 200 240 20 660 80 80 660 140 340 660 Destroy 0b10 Robot/NC 380 | 30 30 5 35 40 35 . 55 5 . 35 25 20 65 Destroy Leader 844 | . 48 10 184 64 62 10 66 . . 170 32 62 136 Allied During Kill 174 | . . . 55 . . . 82 29 6 2 . . . Successful Hack 99 | . 19 6 21 . . 5 11 9 . 14 14 . . Disable Machine 270 | . . . 45 30 30 . 30 . . 30 75 15 15 Destroy Structure 582 | . 4 1 38 32 23 9 70 5 1 83 120 66 130 Partial Spotted 30 | . . . . 30 . . . . . . . . . Lose Combat Pursuer 570 | . 30 . 75 . 90 . 60 . . 195 15 15 90 Influence Decreases 6502 | 30 252 106 822 482 397 246 578 544 128 552 872 525 968 Entered New Map 1081 | . . 46 10 120 66 104 1 202 25 . 326 95 86 Time Decay 4299 | 30 252 60 508 342 281 137 397 342 100 432 526 410 482 Lost Part 778 | . . . 128 20 50 . 40 . . 100 20 20 400 Lost Ally 309 | . . . 146 . . . 140 . 3 20 . . . Purge Threat 35 | . . . 30 . . 5 . . . . . . . Squads Dispatched 44 | . 2 . 7 2 6 1 2 . . 11 3 4 6 Investigation 5 | . 2 . 1 . 1 . . . . . . 1 . Extermination 14 | . . . . . 2 1 . . . 2 2 2 5 Reinforcement 17 | . . . . 2 3 . 2 . . 7 1 1 1 Assault . | . . . . . . . . . . . . . . Garrison 8 | . . . 6 . . . . . . 2 . . . Intercept . | . . . . . . . . . . . . . . Searches Triggered . | . . . . . . . . . . . . . . Construction Impeded 4 | . . . . . . . . . . 2 . 1 1 Haulers Reinforced 1 | . . . . . . . . . . 1 . . . Active Scanning Responses . | . . . . . . . . . . . . . . Cargo Convoy Interrupts 1 | . . . . . 1 . . . . . . . . Stealth | -11 -10 -9 -9 -8 -7 -6 -6 -6 -6 -6 -5 -4 -3 --------- Run | Yrd Mat Mat Sto Mat Fac Fac Ext Cet Arc Hub Fac Fac Res Distress Signals 17 | . . . 1 2 4 . 1 1 . 5 . 1 2 Communications Jammed . | . . . . . . . . . . . . . . Distress Signals . | . . . . . . . . . . . . . . Times Spotted 264 | . 16 6 31 19 21 1 39 5 4 41 11 20 50 Peak Tracking Total 10 | . 3 4 7 3 6 1 4 5 1 10 3 6 5 Tactical Retreats 24 | . 2 . 2 . 4 . 3 . . 6 1 1 5 Traps | -11 -10 -9 -9 -8 -7 -6 -6 -6 -6 -6 -5 -4 -3 ------- Run | Yrd Mat Mat Sto Mat Fac Fac Ext Cet Arc Hub Fac Fac Res Traps Triggered 10 | . 2 . 1 . . . 2 . . . 2 1 2 Indirectly . | . . . . . . . . . . . . . . Trap Hack Attempts . | . . . . . . . . . . . . . . Triggered . | . . . . . . . . . . . . . . Disarmed . | . . . . . . . . . . . . . . Reprogrammed . | . . . . . . . . . . . . . . Reused . | . . . . . . . . . . . . . . Traps Extracted . | . . . . . . . . . . . . . . Installed . | . . . . . . . . . . . . . . Triggered . | . . . . . . . . . . . . . . Machines | -11 -10 -9 -9 -8 -7 -6 -6 -6 -6 -6 -5 -4 -3 ---------- Run | Yrd Mat Mat Sto Mat Fac Fac Ext Cet Arc Hub Fac Fac Res Machines Disabled 18 | . . . 3 2 2 . 2 . . 2 5 1 1 Max in Single Turn 4 | . . . 1 2 1 . 1 . . 1 4 1 1 Garrison Access 1 | . . . . . 1 . . . . . . . . Energy Cycler 2 | . . . . . . . 2 . . . . . . Machines Repaired . | . . . . . . . . . . . . . . Machines Dismantled . | . . . . . . . . . . . . . . Machines Sabotaged . | . . . . . . . . . . . . . . Overloaded Fab Kills . | . . . . . . . . . . . . . . Hacking | -11 -10 -9 -9 -8 -7 -6 -6 -6 -6 -6 -5 -4 -3 --------- Run | Yrd Mat Mat Sto Mat Fac Fac Ext Cet Arc Hub Fac Fac Res Machines Accessed 48 | . 4 2 13 1 4 2 5 3 1 3 6 1 3 Terminals 36 | . 4 2 10 1 2 2 5 3 . 2 3 1 1 Fabricators 2 | . . . . . . . . . . . 1 . 1 Repair Stations 2 | . . . 1 . . . . . . . 1 . . Recycling Units 4 | . . . 2 . 1 . . . . . 1 . . Scanalyzers . | . . . . . . . . . . . . . . Garrison Access 3 | . . . . . 1 . . . . 1 . . 1 Total Hacks 101 | . 9 6 27 5 7 6 9 10 1 5 10 3 3 Successful 42 | . 4 3 15 2 2 4 5 2 1 1 3 . . Failed 59 | . 5 3 12 3 5 2 4 8 . 4 7 3 3 Catastrophic 17 | . 2 . 3 . 2 1 1 3 . 1 1 . 3 Database Lockouts . | . . . . . . . . . . . . . . Manual 53 | . 8 4 13 5 3 4 2 . . 4 6 3 1 Terminals 82 | . 9 6 21 5 3 6 9 10 . 4 5 3 1 Fabricators 2 | . . . . . . . . . . . 1 . 1 Repair Stations 4 | . . . 3 . . . . . . . 1 . . Recycling Units 9 | . . . 3 . 3 . . . . . 3 . . Scanalyzers . | . . . . . . . . . . . . . . Garrison Access 3 | . . . . . 1 . . . . 1 . . 1 Terminal Hacks 21 | . 1 1 8 . . 3 4 2 1 . 1 . . Record 2 | . . . . . . . . 1 1 . . . . Robot Analysis 1 | . . . 1 . . . . . . . . . . Open Door 7 | . . . 2 . . 1 3 1 . . . . . Branch Access Points 2 | . . 1 1 . . . . . . . . . . Alert Level 5 | . . . 2 . . 1 1 . . . 1 . . Unreport Threat 2 | . . . 1 . . 1 . . . . . . . Maintenance Status 1 | . 1 . . . . . . . . . . . . Hauler Manifests 1 | . . . 1 . . . . . . . . . . Fabricator Hacks . | . . . . . . . . . . . . . . Repair Station Hacks 2 | . . . 2 . . . . . . . . . . Scan Component 1 | . . . 1 . . . . . . . . . . Repair 1 | . . . 1 . . . . . . . . . . Recycling Unit Hacks 3 | . . . 2 . 1 . . . . . . . . Report Inventory 3 | . . . 2 . 1 . . . . . . . . Scanalyzer . | . . . . . . . . . . . . . . Garrison Access Hacks 1 | . . . . . 1 . . . . . . . . Seal Access 1 | . . . . . 1 . . . . . . . . Unauthorized Hacks 15 | . 3 2 3 2 . 1 1 . . 1 2 . . Terminals 13 | . 3 2 2 2 . 1 1 . . 1 1 . . Track 1 | . . . 1 . . . . . . . . . . Assimilate 1 | . . 1 . . . . . . . . . . . Botnet 9 | . 2 1 1 1 . 1 1 . . 1 1 . . Operators 2 | . 1 . . 1 . . . . . . . . . Fabricators . | . . . . . . . . . . . . . . Repair Stations . | . . . . . . . . . . . . . . Recycling Units 2 | . . . 1 . . . . . . . 1 . . Monitor 1 | . . . . . . . . . . . 1 . . Reject 1 | . . . 1 . . . . . . . . . . Scanalyzers . | . . . . . . . . . . . . . . Garrison Access . | . . . . . . . . . . . . . . Data Cores Recovered 1 | . . . . . 1 . . . . . . . . Used . | . . . . . . . . . . . . . . Hacking Detections 40 | . 4 2 10 1 3 1 4 2 . 3 6 1 3 Full Trace Events 2 | . . . 1 . 1 . . . . . . . . Feedback Events . | . . . . . . . . . . . . . . Feedback Blocked . | . . . . . . . . . . . . . . Robot Schematics Acquired . | . . . . . . . . . . . . . . Robots Built . | . . . . . . . . . . . . . . Authchips . | . . . . . . . . . . . . . . Time . | . . . . . . . . . . . . . . Total Robot Build Rating . | . . . . . . . . . . . . . . Part Schematics Acquired . | . . . . . . . . . . . . . . Parts Built . | . . . . . . . . . . . . . . Authchips . | . . . . . . . . . . . . . . Time . | . . . . . . . . . . . . . . Total Part Build Rating . | . . . . . . . . . . . . . . Parts Repaired 1 | . . . 1 . . . . . . . . . . Time 26 | . . . 26 . . . . . . . . . . Parts Recycled . | . . . . . . . . . . . . . . Recycled Matter . | . . . . . . . . . . . . . . Retrieved Matter . | . . . . . . . . . . . . . . Retrieved Components . | . . . . . . . . . . . . . . Parts Scanalyzed . | . . . . . . . . . . . . . . Part Schematics Acquired . | . . . . . . . . . . . . . . Parts Damaged . | . . . . . . . . . . . . . . Bothacking | -11 -10 -9 -9 -8 -7 -6 -6 -6 -6 -6 -5 -4 -3 ------------ Run | Yrd Mat Mat Sto Mat Fac Fac Ext Cet Arc Hub Fac Fac Res Used RIF Installer . | . . . . . . . . . . . . . . Robots Hacked . | . . . . . . . . . . . . . . Non-combat . | . . . . . . . . . . . . . . Combat . | . . . . . . . . . . . . . . Robot Hacks Applied . | . . . . . . . . . . . . . . Relay Couplers Released . | . . . . . . . . . . . . . . Fabnet Peak Effective % . | . . . . . . . . . . . . . . Robots Rewired 16 | . . . . . . . 16 . . . . . . Allies Hacked . | . . . . . . . . . . . . . . Hacks Repelled . | . . . . . . . . . . . . . . Allies | -11 -10 -9 -9 -8 -7 -6 -6 -6 -6 -6 -5 -4 -3 -------- Run | Yrd Mat Mat Sto Mat Fac Fac Ext Cet Arc Hub Fac Fac Res Total Allies 26 | . . . 10 . . . 16 . . . . . . Largest Group 10 | . . . 10 . . . 4 4 4 1 . . . Highest-Rated Group 124 | . . . 88 . . . 124 110 94 26 . . . Highest-Rated Ally 39 | . . . 16 . . . 39 39 31 26 . . . Total Orders 28 | . . . . . . . 13 12 3 . . . . STAY 12 | . . . . . . . 6 5 1 . . . . FOLLOW 16 | . . . . . . . 7 7 2 . . . . Ally Attacks 176 | . . . 51 . . . 90 19 13 3 . . . Total Damage 2733 | . . . 494 . . . 1556 356 265 62 . . . Kills 30 | . . . 7 . . . 16 4 2 1 . . . Allies Corrupted . | . . . . . . . . . . . . . . Allies Melted . | . . . . . . . . . . . . . . Intel | -11 -10 -9 -9 -8 -7 -6 -6 -6 -6 -6 -5 -4 -3 ------- Run | Yrd Mat Mat Sto Mat Fac Fac Ext Cet Arc Hub Fac Fac Res Active Infowar (turns) 9087 | 91 993 123 971 . 323 556 500 . . 810 1336 985 2399 Optics 2770 | . . . . . . . . . . . . 371 2399 Sensors 4964 | . . . . . 323 527 46 . . 810 890 932 1436 Terrain 1608 | . . . 552 . . 556 500 . . . . . . Structural 1117 | . . . . . . . . . . . 1014 . 103 Seismic 1626 | 91 993 123 419 . . . . . . . . . . Jamming 69 | . . . . . . . . . . . 69 . . Robot Analysis Total 1 | . . . 1 . . . . . . . . . . Derelict Logs Recovered . | . . . . . . . . . . . . . . Drone Launches . | . . . . . . . . . . . . . . Drone Recoveries . | . . . . . . . . . . . . . . Exploration | -11 -10 -9 -9 -8 -7 -6 -6 -6 -6 -6 -5 -4 -3 ------------- Run | Yrd Mat Mat Sto Mat Fac Fac Ext Cet Arc Hub Fac Fac Res Turns Passed 16031 | 189 993 123 1856 772 1543 556 2764 764 513 1106 1468 985 2399 Spaces Moved 7123 | 89 495 60 610 258 882 386 1255 415 230 356 788 491 808 Core 17 | 1 . . . . . . . . . . . . 16 Treads 4797 | 88 495 60 524 205 . . 1016 415 230 356 440 491 477 Legs 129 | . . . 86 . . . . . . . . . 43 Wheels 2175 | . . . . 53 882 386 239 . . . 348 . 267 Hover 5 | . . . . . . . . . . . . . 5 Flight . | . . . . . . . . . . . . . . Fastest Speed 50 | 50 160 160 160 140 116 116 116 154 160 155 125 160 50 Average Speed 162 | 158 160 160 220 219 144 120 151 159 160 159 147 160 174 Slowest Speed 1350 | 160 160 160 330 240 155 131 240 160 160 160 170 161 1350 Overloaded Moves . | . . . . . . . . . . . . . . Propulsion Burnouts . | . . . . . . . . . . . . . . Robots Hopped . | . . . . . . . . . . . . . . Potential Cave-ins 9 | . . . . . . . . . . . . . 9 Cave-ins Triggered . | . . . . . . . . . . . . . . Exploration Rate (%) 41 | 4 74 11 77 27 17 9 85 87 97 35 22 16 21 Regions Visited 13 Branch Regions 5 Pre-discovered Areas . | . . . . . . . . . . . . . . Known Exits Taken 11 | . . 1 1 1 1 1 1 1 1 1 1 1 . Unknown Exits Taken 2 | 1 1 . . . . . . . . . . . . Scrap Searched . | . . . . . . . . . . . . . . Spaces Dug 164 | . . 1 7 2 . 12 1 . . 30 70 11 30 Terrain Destroyed 488 | 3 5 1 39 34 36 18 75 2 1 99 74 33 68 Melee 36 | . . . . . . . 1 . . 5 20 6 4 Projectile 138 | . . 1 9 2 . 13 13 2 1 26 10 14 47 AOE 314 | 3 5 . 30 32 36 5 61 . . 68 44 13 17 Terrain Rammed . | . . . . . . . . . . . . . . Walls Destroyed . | . . . . . . . . . . . . . . Machines Disabled . | . . . . . . . . . . . . . . Actions | -11 -10 -9 -9 -8 -7 -6 -6 -6 -6 -6 -5 -4 -3 --------- Run | Yrd Mat Mat Sto Mat Fac Fac Ext Cet Arc Hub Fac Fac Res Total 10293 | 114 613 73 938 372 1050 458 1999 506 360 707 984 601 1518 Wait 1473 | . 40 . 132 26 41 18 328 53 116 205 39 27 448 Move 7111 | 88 494 59 609 257 882 385 1254 414 229 355 787 490 808 Hop . | . . . . . . . . . . . . . . Pick Up 202 | 7 10 1 37 12 19 11 20 6 3 12 29 7 28 Fast Attach 81 | 6 2 . 18 2 5 2 9 2 . 2 11 2 20 Attach 85 | 1 . 1 11 4 10 6 4 3 . 18 6 4 17 Detach 15 | . . . 1 . . 2 . 4 . 3 3 . 2 Swap 147 | 1 6 1 17 8 19 5 23 5 1 11 19 13 18 Drop 184 | . 13 . 23 14 21 10 30 11 3 5 30 7 17 Fire 672 | 11 48 11 90 49 53 19 63 8 8 90 25 42 155 Melee 57 | . . . . . . . 2 . . 6 35 9 5 Ram . | . . . . . . . . . . . . . . Kick . | . . . . . . . . . . . . . . Crush . | . . . . . . . . . . . . . . Escape Stasis 10 | . . . . . . . 10 . . . . . . Rewire 256 | . . . . . . . 256 . . . . . . Trap . | . . . . . . . . . . . . . . Miscellaneous . | . . . . . . . . . . . . . . Route ------- -11/Scrapyard -10/Materials (discovered 3 exits: *Mat / [*Min x2]) -9/Materials (discovered 4 exits: Min x2 / *Sto x2) -9/Storage (discovered 2 exits: *Mat / Rec) -8/Materials -7/Factory -6/Factory -6/Extension (discovered 3 exits: *Fac x2 / *Cet) -6/Cetus (discovered 2 exits: *Fac / *Arc) -6/Archives (discovered 3 exits: *Fac / *Hub x2) -6/Hub_04(d) (discovered 3 exits: *Fac x3) -5/Factory -4/Factory -3/Research History --------- Turn | Location | Event 48 | -11/Scrapyard | Discovered new exit (range 15) 190 | -11/Scrapyard | Entered Materials 253 | -10/Materials | Discovered new exit (range 7) 305 | -10/Materials | Build established: Mutant 341 | -10/Materials | Discovered new exit (range 12) 803 | -10/Materials | Discovered new exit (range 16) 1183 | -10/Materials | Entered another Materials area 1183 | -9/Materials | Evolved 2 slots: Propulsion x1, Utility x1 1228 | -9/Materials | Discovered new exit (range 9) 1289 | -9/Materials | Identified exit to Mines 1289 | -9/Materials | Identified exit to Storage 1306 | -9/Materials | Entered Storage 1494 | -9/Storage | Lost 3 parts (1n1u1w) 1651 | -9/Storage | Identified exit to Recycling 1742 | -9/Storage | System corruption reached 10% 1802 | -9/Storage | Lost 9 parts (1p1n4u3w) 1854 | -9/Storage | Core integrity fell below 50% 1859 | -9/Storage | Garrison activated, responded to threat 2183 | -9/Storage | Build established: Scavenger-Mutant 2394 | -9/Storage | Assisted by bots powering up and referring to "LRC-V3" 2587 | -9/Storage | Repaired Mining Laser 2646 | -9/Storage | Build established: Commander-Mutant 2709 | -9/Storage | Found Prototype Processor 2709 | -9/Storage | Identified Exp. Targeting Computer 3070 | -9/Storage | Lost 5 allies 3083 | -9/Storage | Core integrity fell below 20% 3133 | -9/Storage | Discovered new exit (range 9) 3161 | -9/Storage | Identified exit to Materials 3162 | -9/Storage | Entered Materials 3162 | -8/Materials | Evolved 2 slots: Propulsion x1, Utility x1 3325 | -8/Materials | Build established: Scavenger-Mutant 3571 | -8/Materials | Discovered new exit (range 9) 3773 | -8/Materials | Met 7R-MNS 3932 | -8/Materials | Identified exit to Factory 3934 | -8/Materials | Entered Factory 3934 | -7/Factory | Evolved 2 slots: Propulsion x1, Utility x1 3935 | -7/Factory | Caught up to 7R-MNS 3976 | -7/Factory | Discovered new exit (range 14) 3997 | -7/Factory | Identified exit to Factory 4673 | -7/Factory | Cargo convoy interrupted 5190 | -7/Factory | Lost 3 parts (1n2u) 5209 | -7/Factory | Found PL-3XN's Ring of Power 5477 | -7/Factory | Entered another Factory area 5477 | -6/Factory | Evolved 2 slots: Propulsion x1, Utility x1 5766 | -6/Factory | Build established: Scavenger-Skirmisher 6024 | -6/Factory | Discovered new exit (range 9) 6032 | -6/Factory | Identified exit to Extension 6033 | -6/Factory | Entered Extension 6319 | -6/Extension | Energy Cycler disabled 6319 | -6/Extension | Rescued a captive Derelict 6319 | -6/Extension | Rescued a captive Derelict 6323 | -6/Extension | Rescued a captive Derelict 6325 | -6/Extension | Rescued a captive Derelict 6325 | -6/Extension | Rescued a captive Derelict 6326 | -6/Extension | Rescued a captive Derelict 6378 | -6/Extension | Lost 4 allies 6382 | -6/Extension | Build established: Scavenger-Mutant 6404 | -6/Extension | Found Hvy. Insulated Plating 7552 | -6/Extension | Spotted B-75 Beast 7604 | -6/Extension | Allies destroyed B-75 Beast 7650 | -6/Extension | Discovered new exit (range 15) 7652 | -6/Extension | Spotted B-75 Beast 7960 | -6/Extension | Allies destroyed B-75 Beast 8005 | -6/Extension | Identified exit to Factory 8037 | -6/Extension | Extracted ID and sensor layout for unrecognized location from A7's data core 8465 | -6/Extension | Lost 3 allies 8633 | -6/Extension | Disrupted transfer network 8764 | -6/Extension | Discovered exit to Factory (range 10) 8766 | -6/Extension | Discovered new exit (range 6) 8793 | -6/Extension | Identified exit to Cetus 8797 | -6/Extension | Entered Cetus 8797 | -6/Cetus | Accompanied by 4 allies 8817 | -6/Cetus | Spotted Cetus Guard 8817 | -6/Cetus | Spotted Cetus Guard 8822 | -6/Cetus | Allies destroyed Cetus Guard 8826 | -6/Cetus | Allies destroyed Cetus Guard 8826 | -6/Cetus | Spotted Cetus Guard 8846 | -6/Cetus | Destroyed Cetus Guard 9329 | -6/Cetus | Discovered exit to Factory (range 15) 9497 | -6/Cetus | Discovered new exit (range 15) 9520 | -6/Cetus | Identified exit to Archives 9547 | -6/Cetus | Security sweep announced 9561 | -6/Cetus | Entered Archives 9561 | -6/Archives | Accompanied by 4 allies 9799 | -6/Archives | Unable to access archive contents 9799 | -6/Archives | Unable to access archive contents 9825 | -6/Archives | Unable to access archive contents 9847 | -6/Archives | Unable to access archive contents 9852 | -6/Archives | Discovered new exit (range 15) 9865 | -6/Archives | Unable to access archive contents 9886 | -6/Archives | Discovered new exit (range 13) 9910 | -6/Archives | Identified exit to Hub_04(d) 10002 | -6/Archives | Discovered exit to Factory (range 15) 10074 | -6/Archives | Entered Hub_04(d) 10074 | -6/Hub_04(d) | Accompanied by 1 ally 10115 | -6/Hub_04(d) | Garrison activated, responded to threat 10176 | -6/Hub_04(d) | Lost 3 parts (2u1w) 10184 | -6/Hub_04(d) | Discovered exit to Factory (range 16) 10721 | -6/Hub_04(d) | Garrison activated, responded to threat 10768 | -6/Hub_04(d) | Discovered exit to Factory (range 13) 10817 | -6/Hub_04(d) | Lost 3 parts (2u1w) 10915 | -6/Hub_04(d) | Destroyed 7 combat bots 10943 | -6/Hub_04(d) | Disrupted transfer network 11016 | -6/Hub_04(d) | Destroyed 8 combat bots 11024 | -6/Hub_04(d) | Core integrity fell below 50% 11054 | -6/Hub_04(d) | Lost 5 parts (1p2u2w) 11055 | -6/Hub_04(d) | Discovered exit to Factory (range 8) 11180 | -6/Hub_04(d) | Entered Factory 11180 | -5/Factory | Evolved 2 slots: Utility x2 11533 | -5/Factory | Build established: Scavenger-Assassin 12050 | -5/Factory | Build established: Scavenger-Mutant 12444 | -5/Factory | Build established: Mutant 12610 | -5/Factory | Discovered new exit (range 12) 12634 | -5/Factory | Identified exit to Factory 12648 | -5/Factory | Entered another Factory area 12648 | -4/Factory | Evolved 2 slots: Utility x2 12998 | -4/Factory | Found Quantum Capacitor 13571 | -4/Factory | Discovered new exit (range 20) 13631 | -4/Factory | Identified exit to Research 13633 | -4/Factory | Entered Research 13633 | -3/Research | Evolved 2 slots: Utility x2 13653 | -3/Research | Build established: Skirmisher 15043 | -3/Research | System corruption reached 10% 15089 | -3/Research | System corruption reached 30% 15142 | -3/Research | Lost 12 parts (2p4n4u2w) 15252 | -3/Research | Lost 6 parts (5n1w) 15392 | -3/Research | Lost 4 parts (1p1n2w) 15594 | -3/Research | Build established: Scavenger-Mutant 15776 | -3/Research | Lost 3 parts (1p2n) 15973 | -3/Research | Core integrity fell below 50% 16019 | -3/Research | Core integrity fell below 20% 16032 | -3/Research | Destroyed by P-80 Master with Gamma Rifle Last Messages --------------- 15991_ Slug penetrates P-80 Master. 15991_ Destroyed Gamma Rifle. 15994_ System corrupted: Hyp. Gauss Cannon jammed. 15997_ P-80 Master knocked back. 15997_ Slug penetrates Wall. 16000_ System corrupted: Hyp. Gauss Cannon jammed. 16000_ Slug penetrates Wall. 16000_ Hyp. Gauss Cannon destroyed. 16003_ System corrupted: Railgun jammed. 16005_ PGEO YLVILVLERZT JSD 16007_ Slug penetrates P-80 Master. 16007_ Slug penetrates Wall. 16009_ Railgun destroyed. 16016_ P-80 Master resets G-67 Veteran, system corruption cleaned. 16021_ GA FPUHSSI2A#L,: WHNK8,HT 8:D5VQG5 16024_ Dropped Huge Storage Unit. 16027_ Acquired 17 matter. Map ----- +----------------------------------------------------+ | # # #?# ^ # #?????????? | | # # #?# + #?????????? | | ####+## #?########### # #?????????? | | ???# #??????????## # #?????????? | | ???# #??????????## # #?????????? | | ???# #??????????## # #?????????? | | ???# #??????????## # #?????????? | | ???####+######??????## ##############?????????? | | ?????# """ #??????## ##????????# #??????????? | | ?????# """ #??????## ##????????# #??????????? | | ?????# """ #??????## ##????????# #??????????? | | ?????# ######### #########?# #??????????? | | ?????#= ######### #########?# ##?????????? | | ?????# ## ##?# ##?????????? | | ?????# ## # ## %#### ?????? | | ?????# ## ####/##### ?????? | | ?????########## ! # # ?????? | | ????????????? # ########## =%*# ! # ?????? | | ????????????? # # # %%%#!!! # ?????? | | ????????????? # # #[!=!#[%! # ?????? | | ????????????? # # p/= !!/!!]""" # ?????? | | ????????????? # # p# =[*#!][""" # ?????? | | ????????????? # # """ # !!!#!! """ # ?????? | | ????????????? + # """ # %=# # ?????? | | ????????????? # # """ # # # ?????? | | ????????????? # # @ # # ######## ?????? | | ?????????????## # # ########## ?????? | | ????????????? #####+#;## # ???????????? | | ?????????????? ##### ! # ??????????????? | | ????????????? ##???? =% # ??????????????? | | ???????????? ????? # ??????????????? | | ????????????###+####????? # ??????????????? | | ????????????# ???? # ??????????????? | | ?????????????? ???????### ##??????????????? | | ?????????????? ????????## ??????????????? | | ?????????????? ????????## ???????????????? | | ????????????? ????????## ???????????????? | | ?????????????? ?????????## ?????????????? | | ????????????????????????## ###?????????????? | | ????????????????????????## # ?????????????? | | ????????????????????????##+## # ??????????????? | | ????????????????????????? + # ??????????????? | | ????????????????????????????# #???????????????? | | ????????????????????????????# +???????????????? | | ?????????????????????????????? ????????????????? | | ?????????????????????????????????????????????????? | | ?????????????????????????????????????????????????? | | ?????????????????????????????????????????????????? | | ?????????????????????????????????????????????????? | | ?????????????????????????????????????????????????? | +----------------------------------------------------+ Best States ------------- Heat Dissipation 65 Energy Generation 25 Energy Capacity 350 Matter Stores 300 Matter Capacity 300 Sight Range 22 Robot Scan Range 16 Terrain Scan Range 16 Terrain Scan Density 10 Jamming Range 14 Armor Coverage 1650 Resistance: KI 20 Resistance: TH 30 Resistance: EM 30 Utility Shielding 33 Phase Shifting 10 Evasion (%) 50 Targeting Accuracy 20 Target Analysis 8 Core Analysis 6 Armor Integrity Analysis 30 Recoil Reduction 6 Kinecelleration 40 Offensive Hacking 14 Defensive Hacking 20 Item Schematics ----------------- None Robot Schematics ------------------ None Fabricated ------------ Nothing Repaired ---------- Mining Laser | 6% | -9/Storage Alien Tech Used ----------------- None Achievements -------------- None Challenges ------------ None Game ------ Seed HypervelocityThrowingShell Manual? 0 Play Time 05:16:52 Cumulative 212.6 hours Start 2025.05.19 @ 00:32:42 End 2025.05.20 @ 02:26:17 Sessions 9 Manual Loads 0 Difficulty Rogue Special Mode None Game No. 127 Rogue 127 Adventurer 0 Explorer 0 Win Type - Total 1 Types 1/0/0/0/0/0/0/0/0/0 Lore% 30 Gallery% 51 Achievement% 40 Wizard Run 0 Options --------- Layout 2 ASCII 0 Keyboard 0 Movement Mouse Keybinds 0 Fullscreen 1 Font 24/Smallcaps Map View 50x44 Zoom Use 0% Tactical HUD 1 Map Filters NONE Filters NONE Steam 1 RUN: 702c9c7c-12cf-4520-a2db-cf8b81f6605e